Cogmind - Beta 14 @@@ ROGUE MODE // 2024.10.24 @ 08:44:29 Player: Mediocre Result: Escaped! Performance ------------- Evolutions (9) 4500 Regions Visited (25) 5000 Robots Destroyed (255) 1275 Value Destroyed (7508) 7508 Prototype IDs (92) 1840 Alien Tech Used (0) 0 Bonus (7367) 7367 TOTAL SCORE: 27490 Bonus ------- High Alert Combat Kills 375 Follower Combat Kills 980 Network Hubs Disabled 600 Aligned with FarCom 300 Built Enhanced Grunts 300 Met R17 at Cetus 500 Met R17 at Research 2000 Win 3000 Friendly Fire -688 Cogmind --------- Core Integrity 1600/1600 Matter 170/300 Energy 82/180 System Corruption 0% Temperature Hot (256) Movement Flying (18) Location To Epsilon Eridani Parts ------- > --- POWER (2) -------- Backup Power III Light Particle Reactor > --- PROPULSION (8) --- Electron Diverter Electron Diverter Electron Diverter Cooled Impulse Thruster Cooled Impulse Thruster Cooled Impulse Thruster Impulse Thruster Array > --- UTILITY (13) ----- Advanced Power Amplifier Experimental Heat Sink Large Storage Unit Experimental Terrain Scanner Experimental Terrain Scan Processor Experimental Terrain Scan Processor Advanced Reaction Control System Experimental Utility Shielding Centrium Medium Armor Plating Advanced Hacking Suite Advanced Hacking Suite Advanced Hacking Suite > --- WEAPON (2) ------- Lance Lance > --- INVENTORY (15) --- Improved Fusion Compressor Advanced Energy Well (500) Gravity Neutralizer Quantum Capacitor Advanced Reaction Control System Graphene Brace Improved Hacking Suite Advanced Hacking Suite Matter Neutralizer Gamma Bomb Array Mini Smartbomb Launcher Peak State ------------ > --- POWER ------------ Backup Power III Light Particle Reactor > --- PROPULSION ------- Electron Diverter Electron Diverter Electron Diverter Cooled Impulse Thruster Cooled Impulse Thruster Cooled Impulse Thruster Impulse Thruster Array > --- UTILITY ---------- Advanced Power Amplifier Experimental Heat Sink Large Storage Unit Experimental Terrain Scanner Experimental Terrain Scan Processor Experimental Terrain Scan Processor Advanced Reaction Control System Experimental Utility Shielding Centrium Medium Armor Plating Advanced Hacking Suite Advanced Hacking Suite Advanced Hacking Suite Advanced Hacking Suite > --- WEAPON ----------- Lance Lance > --- INVENTORY -------- Improved Fusion Compressor Advanced Energy Well Gravity Neutralizer Quantum Capacitor Advanced Reaction Control System Graphene Brace Improved Hacking Suite Advanced Hacking Suite Matter Neutralizer Gamma Bomb Array Mini Smartbomb Launcher [Rating: 187] Favorites ----------- Power Backup Power VII Engine Ion Engine Power Core Backup Power VII Reactor Light Particle Reactor Propulsion Electron Diverter Treads Light Treads Wheel Wheel Flight Unit Electron Diverter Utility Advanced Hacking Suite Device Structural Scanner Storage Medium Storage Unit Processor Experimental Terrain Scan Processor Hackware Advanced Hacking Suite Protection Experimental Utility Shielding Weapon Power Sword Energy Gun Advanced Variable Charge Gun Energy Cannon Cooled Plasma Cannon Ballistic Gun Assault Rifle Ballistic Cannon Advanced Assault Cannon Launcher Mini Smartbomb Launcher Special Weapon Plasma Cutter Slashing Weapon Power Sword Piercing Weapon Spear Special Melee Weapon Improved Datajack Build | -11 -10 -10 -10 -9 -8 -7 -7 -7 -6 -6 -6 -6 -6 -6 -6 -5 -5 -5 -4 -4 -4 -4 -3 -2 -1 ------- Run | Yrd Mat Min Exi Min Mat Fac Was Fac Fac Was Fac Ext Cet Arc Hub Fac Was Fac Fac Was Fac Arm Res Res Acc Slots Evolved 18 | . . . . . 4 2 . . 2 . . . . . . 2 . . 2 . . . 2 2 2 Power 1 | . . . . . . . . . . . . . . . . 1 . . . . . . . . . Propulsion 6 | . . . . . 1 1 . . 1 . . . . . . . . . . . . . 1 1 1 Utility 11 | . . . . . 3 1 . . 1 . . . . . . 1 . . 2 . . . 1 1 1 Weapon . | . . . . . . . . . . . . . . . . . . . . . . . . . . Parts Attached 354 | 6 9 2 4 2 27 14 . 21 35 . 37 8 8 2 10 42 9 41 26 . 20 8 15 2 6 Power 26 | 1 1 . 1 . 3 2 . 2 3 . 2 1 1 . 1 3 1 . . . 1 1 1 . 1 Engine 7 | 1 1 . . . 1 . . 2 1 . 1 . . . . . . . . . . . . . . Core 17 | . . . 1 . 2 2 . . 2 . 1 1 1 . 1 3 1 . . . 1 1 . . . Reactor 2 | . . . . . . . . . . . . . . . . . . . . . . . 1 . 1 Propulsion 63 | 2 1 . 2 . 8 1 . 2 12 . 1 . 1 . 1 13 . 4 3 . 4 1 4 1 2 Treads 8 | 1 1 . 2 . 4 . . . . . . . . . . . . . . . . . . . . Leg . | . . . . . . . . . . . . . . . . . . . . . . . . . . Wheel 1 | 1 . . . . . . . . . . . . . . . . . . . . . . . . . Hover . | . . . . . . . . . . . . . . . . . . . . . . . . . . Flight 54 | . . . . . 4 1 . 2 12 . 1 . 1 . 1 13 . 4 3 . 4 1 4 1 2 Utility 143 | 1 3 . . . 10 8 . 12 9 . 11 3 2 2 1 18 . 22 14 . 12 2 9 1 3 Device 66 | . . . . . 3 1 . 3 3 . 5 . . 1 1 12 . 17 8 . 7 1 2 . 2 Storage 8 | 1 1 . . . 2 . . . . . . . . . . 2 . . 1 . 1 . . . . Processor 6 | . . . . . . 1 . . . . . 1 . . . 1 . 1 . . . 1 1 . . Hackware 32 | . . . . . 2 5 . 4 4 . 3 . . . . 2 . 4 2 . 1 . 5 . . Protection 31 | . 2 . . . 3 1 . 5 2 . 3 2 2 1 . 1 . . 3 . 3 . 1 1 1 Artifact . | . . . . . . . . . . . . . . . . . . . . . . . . . . Weapon 122 | 2 4 2 1 2 6 3 . 5 11 . 23 4 4 . 7 8 8 15 9 . 3 4 1 . . Energy Gun 3 | . 1 . . . . . . . . . . . . . . . . . 2 . . . . . . Energy Cannon 10 | . . . . . . . . . 2 . 6 . . . 2 . . . . . . . . . . Ballistic Gun 7 | 2 2 1 . 2 . . . . . . . . . . . . . . . . . . . . . Ballistic Cannon 4 | . . . . . 4 . . . . . . . . . . . . . . . . . . . . Launcher 35 | . 1 1 . . . 1 . 1 2 . 5 2 2 . . 3 4 7 3 . 1 2 . . . Special Weapon 1 | . . . . . . . . . . . . . . . 1 . . . . . . . . . . Impact Weapon . | . . . . . . . . . . . . . . . . . . . . . . . . . . Slashing Weapon 45 | . . . . . 1 2 . 2 . . 12 2 2 . 4 3 4 8 4 . 1 . . . . Piercing Weapon 9 | . . . . . . . . 1 4 . . . . . . . . . . . 1 2 1 . . Special Melee Weapon 8 | . . . 1 . 1 . . 1 3 . . . . . . 2 . . . . . . . . . Unidentified Prototypes 8 | . . . . . 1 . . . 2 . . . 1 . . 3 . . . . 1 . . . . Corrupted Parts 1 | . . . . . . . . 1 . . . . . . . . . . . . . . . . . System Corruption 5 | . . . . . . . . 5 . . . . . . . . . . . . . . . . . Parts Lost 26 | . . 1 . . 1 5 . 1 1 . 3 . 2 . 3 1 . . 4 . 1 3 . . . Power 7 | . . 1 . . . 1 . 1 . . 1 . . . . 1 . . . . . 2 . . . Propulsion 7 | . . . . . . . . . . . 1 . 2 . 3 . . . . . . 1 . . . Utility 8 | . . . . . 1 3 . . . . . . . . . . . . 3 . 1 . . . . Weapon 4 | . . . . . . 1 . . 1 . 1 . . . . . . . 1 . . . . . . Highest Loss Streak 4 | . . 1 . . 1 4 . 1 1 . 1 . 2 . 3 1 . . 3 . 1 2 . . . To Critical Strikes . | . . . . . . . . . . . . . . . . . . . . . . . . . . Average Slot Usage (%) 92 | . 96 87 85 100 97 94 84 94 98 100 94 93 87 86 75 86 94 96 92 89 86 88 87 95 93 Engine 1 | . 14 2 . . 1 . . 2 3 . . . . . . . . . . . . . 3 4 4 Core 6 | . . . 14 14 7 7 7 3 2 6 5 6 6 6 3 8 11 11 10 10 9 9 . . . Treads 6 | . 28 28 28 28 25 . . . . . . . . . . . . . . . . . . . . Flight 20 | . . . . . 1 30 30 30 33 33 33 33 27 26 18 20 23 25 22 21 21 20 21 26 27 Device 8 | . . . . . 3 7 7 8 6 6 6 6 6 7 8 9 11 11 15 21 21 21 16 13 16 Storage 8 | . 14 14 14 14 22 7 7 7 6 6 6 6 6 6 3 4 5 5 5 5 5 5 4 4 4 Hackware 17 | . . . . . . 24 15 22 25 26 26 26 26 26 26 23 23 23 22 21 16 15 15 17 14 Protection 7 | . 11 14 14 14 15 1 7 5 5 6 5 6 6 5 6 5 5 3 5 5 6 5 3 8 8 Ballistic Gun 2 | . 27 27 . 28 . . . . . . . . . . . . . . . . . . . . . Ballistic Cannon 1 | . . . . . 16 . . . . . . . . . . . . . . . . . . . . Slashing Weapon 3 | . . . . . . 7 7 6 . . 4 5 4 6 4 6 3 4 3 5 3 . . . . Piercing Weapon 1 | . . . . . . . . 3 5 6 1 . . . . . . . . . 1 4 5 8 8 Special Melee Weapon 2 | . . . 13 . . 5 . . 4 6 1 . . . . 2 5 5 2 . . . . . . Peak Build Rating 187 | 6 8 8 11 12 32 49 41 56 71 71 79 75 73 68 68 100 102 108 138 123 130 136 155 171 187 Average Rating 70 | 4 7 7 10 11 27 43 40 44 63 70 71 73 68 67 59 85 99 100 124 123 124 129 141 170 183 On Entrance 69 | . 6 8 7 11 12 30 40 41 56 71 71 73 71 68 67 53 99 98 106 123 123 129 120 155 171 Naked Turns . | . . . . . . . . . . . . . . . . . . . . . . . . . . Heaviest Build 58 | 11 32 31 29 32 58 20 20 28 27 23 28 23 29 19 24 30 29 30 41 39 47 43 47 54 57 Greatest Support 70 | 10 40 40 40 40 60 20 20 21 30 27 32 34 30 21 21 33 33 36 40 40 52 52 60 66 70 Greatest Overweight (x) 2 | 1 1 . . . 2 . . 1 1 . . . 1 . 1 . . 1 1 . 1 1 . . 1 Average Overweight (x) . | . . . . . . . . . . . . . . . . . . . . . . . . . . Largest Inventory Capacity 15 | 8 15 15 15 15 15 10 10 10 10 10 10 10 10 10 10 10 10 10 15 15 15 15 15 15 15 Average Capacity 11 | 6 13 15 15 15 14 10 10 10 10 10 10 10 10 10 7 9 10 10 11 15 15 15 15 15 15 Most Carried 15 | 5 15 15 15 15 15 10 10 10 10 10 10 10 10 10 10 10 10 10 15 15 15 15 15 14 12 Average Carried 11 | 2 12 15 14 14 14 7 9 9 9 9 9 10 9 9 7 9 9 9 10 15 14 14 14 13 11 Final Capacity 15 | 8 15 15 15 15 10 10 10 10 10 10 10 10 10 10 5 10 10 10 15 15 15 15 15 15 15 Final Carried 15 | 4 15 15 15 14 5 9 10 10 10 10 10 10 10 9 4 10 10 10 15 15 15 14 15 13 12 Class Distribution -------------------- 57% | Hacker-Sprinter 20% | Mutant 8% | Hacker-Scout 6% | Hacker-Mutant 4% | Wizard-Sprinter Dominant Class ---------------- Mutant | -10/Materials Mutant | -10/Mines Mutant | -10/Exiles Mutant | -9/Mines Mutant | -8/Materials Hacker-Sprinter | -7/Factory Hacker-Sprinter | -7/Waste Hacker-Sprinter | -7/Factory Hacker-Sprinter | -6/Factory Hacker-Sprinter | -6/Waste Hacker-Sprinter | -6/Factory Hacker-Sprinter | -6/Extension Hacker-Sprinter | -6/Cetus Hacker-Sprinter | -6/Archives Hacker-Sprinter | -6/Hub_04(d) Hacker-Sprinter | -5/Factory Hacker-Sprinter | -5/Waste Hacker-Sprinter | -5/Factory Wizard-Sprinter | -4/Factory Hacker-Sprinter | -4/Waste Hacker-Sprinter | -4/Factory Hacker-Scout | -4/Armory Hacker-Scout | -3/Research Hacker-Scout | -2/Research Machinist-Scout | -1/Access Resources | -11 -10 -10 -10 -9 -8 -7 -7 -7 -6 -6 -6 -6 -6 -6 -6 -5 -5 -5 -4 -4 -4 -4 -3 -2 -1 ----------- Run | Yrd Mat Min Exi Min Mat Fac Was Fac Fac Was Fac Ext Cet Arc Hub Fac Was Fac Fac Was Fac Arm Res Res Acc Matter Collected 7248 | 260 351 16 . . 932 209 . 155 429 . 1281 299 230 44 75 620 293 710 607 . 314 50 373 . . Remotely . | . . . . . . . . . . . . . . . . . . . . . . . . . . Salvage Created 9830 | . 844 7 . . 977 562 . 211 577 . 1506 219 610 95 75 1020 546 937 917 . 432 76 219 . . Parts 524 | . 45 3 . . 61 49 . 15 34 . 72 7 33 9 7 45 12 40 45 . 23 10 14 . . Haulers Intercepted 17 | . 2 . . . 5 1 . . 1 . 1 . . . . 1 . 2 3 . 1 . . . . Recyclers Shooed 11 | . 4 . . . 1 . . . . . 3 . . . . 1 . 1 . . 1 . . . . Parts Field Recycled . | . . . . . . . . . . . . . . . . . . . . . . . . . . Retrieved Matter . | . . . . . . . . . . . . . . . . . . . . . . . . . . Parts Self-Destructed . | . . . . . . . . . . . . . . . . . . . . . . . . . . Prevented . | . . . . . . . . . . . . . . . . . . . . . . . . . . Kills | -11 -10 -10 -10 -9 -8 -7 -7 -7 -6 -6 -6 -6 -6 -6 -6 -5 -5 -5 -4 -4 -4 -4 -3 -2 -1 ------- Run | Yrd Mat Min Exi Min Mat Fac Was Fac Fac Was Fac Ext Cet Arc Hub Fac Was Fac Fac Was Fac Arm Res Res Acc Combat Hostiles Destroyed 108 | . 9 3 . . 14 7 . . 2 . 21 8 7 . . 7 2 12 3 . 5 8 . . . Melee 4 | . . . . . . . . . 1 . . . . . . 1 . . . . . 2 . . . Guns 11 | . 9 . . . 1 . . . . . . . . . . . . . 1 . . . . . . Cannons 13 | . . . . . 13 . . . . . . . . . . . . . . . . . . . . AOE 70 | . . 3 . . . 7 . . 1 . 18 8 . . . 6 2 12 2 . 5 6 . . . Classes Destroyed 17 | . 7 1 . . 2 . . 1 2 . . 1 . . . 1 1 . . . . 1 . . . Worker 23 | . 1 . . . 1 3 . . 3 . 4 . . . 1 2 . 2 2 . 2 . 2 . . Builder 18 | . 1 . . . 4 1 . 1 1 . 5 . . . . 1 . 1 2 . . . 1 . . Tunneler 6 | . . . . . . . . . 1 . 1 . . . . . . 3 1 . . . . . . Hauler 17 | . 2 . . . 5 1 . . 1 . 1 . . . . 1 . 2 3 . 1 . . . . Recycler 23 | . 3 . . . 2 2 . . 1 . 6 . . . . 5 . 1 1 . 1 . 1 . . Mechanic 6 | . . . . . . . . 1 2 . . . . . . 2 . . 1 . . . . . . Operator 19 | . 1 . . . 1 2 . 3 2 . . . . 3 . 1 . 1 1 . 3 . 1 . . Drone 1 | . . . . . . . . . . . . . . . . . . . . . . 1 . . . Watcher 34 | . 2 . . . 2 4 . 3 4 . 1 . 2 . 2 3 . 5 4 . 1 . 1 . . Swarmer 35 | . . 3 . . 1 3 . . . . 5 3 . . . 5 . 3 . . 5 7 . . . Cutter 1 | . . . . . . . . . . . . . . . . 1 . . . . . . . . . Grunt 50 | . 9 . . . 8 3 . . 1 . 14 3 . . . 1 . 8 3 . . . . . . Brawler 2 | . . . . . 1 . . . . . 1 . . . . . . . . . . . . . . Sentry 7 | . . . . . 4 1 . . . . . 1 . . . . . 1 . . . . . . . Hunter 1 | . . . . . . . . . . . . 1 . . . . . . . . . . . . . Programmer 2 | . . . . . . . . . 1 . 1 . . . . . . . . . . . . . . Compactor 2 | . . . . . . . . . . . . . . . . . 2 . . . . . . . . Cetus Guard 7 | . . . . . . . . . . . . . 7 . . . . . . . . . . . . Wasp 2 | . . . . . . . . . . . . . . . . . 2 . . . . . . . . Best Kill Streak 13 | . 4 3 . . 6 6 . 2 4 . 13 6 5 2 2 7 2 8 5 . 6 5 2 . . Combat Bots Only 10 | . 2 3 . . 3 3 . . 1 . 10 6 4 . . 5 2 5 2 . 5 5 . . . Max Kills in Single Turn 5 | . 1 2 . . 1 4 . 1 1 . 2 3 2 1 1 3 1 3 5 . 4 2 1 . . Gunslinging . | . . . . . . . . . . . . . . . . . . . . . . . . . . Exploded 4 | . . 2 . . . 3 . . 1 . 2 3 . . . 3 1 3 2 . 4 2 . . . Melee 1 | . . . . . . . . . 1 . . . . . . 1 . . . . . 1 . . . Uniques/NPCs Destroyed . | . . . . . . . . . . . . . . . . . . . . . . . . . . Combat | -11 -10 -10 -10 -9 -8 -7 -7 -7 -6 -6 -6 -6 -6 -6 -6 -5 -5 -5 -4 -4 -4 -4 -3 -2 -1 -------- Run | Yrd Mat Min Exi Min Mat Fac Was Fac Fac Was Fac Ext Cet Arc Hub Fac Was Fac Fac Was Fac Arm Res Res Acc Hostile Shots Fired 559 | . 46 13 . . 42 13 . 27 26 . 65 25 22 1 49 50 . 17 46 . 29 81 2 2 3 Missed 317 | . 14 3 . . 9 4 . 15 9 . 40 19 9 1 33 37 . 13 32 . 21 52 2 1 3 Damage Taken 4826 | . 407 86 . . 461 298 . 204 273 . 554 87 304 81 201 235 22 88 638 45 386 428 . 28 . Core 1222 | . 63 . . . 66 94 . 76 66 . 159 47 97 81 90 40 . 36 144 . 89 46 . 28 . Absorbed by Shields 159 | . . . . . . . . . 52 . . 25 82 . . . . . . . . . . . . Redirected to Shielding 393 | . 12 . . . . . . 23 14 . 32 . . . 26 30 . 21 18 . 78 139 . . . Regen/Repaired (Parts) 411 | . . . . . . . . 9 48 . 151 . . . . 1 . 23 40 . . . 139 . . Core Remaining (%) 83 | 100 . . . 74 88 . . 75 . . . . . . 36 . . 92 . . . 75 100 98 100 Volleys Fired 290 | . 68 7 . . 61 2 . 1 17 . 42 10 9 . 5 6 10 16 27 . 3 6 . . . Largest 2 | . 2 2 . . 2 1 . 1 1 . 1 1 1 . 1 1 1 1 2 . 1 1 . . . Hottest 480 | . 60 40 . . 96 39 . 39 39 . 80 80 46 . 35 80 49 80 480 . 80 80 . . . Shots Fired 441 | . 135 11 . . 120 2 . 1 17 . 42 10 9 . 5 6 10 16 48 . 3 6 . . . Gun 208 | . 134 8 . . 22 . . . . . . . . . . . . . 44 . . . . . . Cannon 118 | . . . . . 98 . . . 4 . 11 . . . 5 . . . . . . . . . . Launcher 115 | . 1 3 . . . 2 . 1 13 . 31 10 9 . . 6 10 16 4 . 3 6 . . . Special . | . . . . . . . . . . . . . . . . . . . . . . . . . . Kinetic 261 | . 133 8 . . 120 . . . . . . . . . . . . . . . . . . . . Thermal 64 | . . . . . . . . . 4 . 11 . . . 5 . . . 44 . . . . . . Explosive 98 | . 1 3 . . . 2 . 1 13 . 23 10 . . . 6 10 16 4 . 3 6 . . . Electromagnetic 18 | . 1 . . . . . . . . . 8 . 9 . . . . . . . . . . . . Robot Hit Streak 19 | . 16 2 . . 11 5 . . 2 . 3 1 5 . . 7 14 3 19 . 4 7 . . . Robot Miss Streak 8 | . 8 3 . . 4 . . . 4 . 1 . . . . . 1 . 2 . . . . . . Penetration Max . | . . . . . . . . . . . . . . . . . . . . . . . . . . Secondary Targets . | . . . . . . . . . . . . . . . . . . . . . . . . . . Shots Hit Robots 386 | . 90 4 6 . 68 25 . 14 26 . 21 1 4 4 3 24 8 20 42 . 13 7 6 . . Core Hits 333 | . 38 3 . . 36 18 . 7 23 . 59 20 13 2 1 26 6 35 25 . 11 9 1 . . Critical Kills 1 | . 1 . . . . . . . . . . . . . . . . . . . . . . . . Critical Parts Destroyed . | . . . . . . . . . . . . . . . . . . . . . . . . . . Critical Strikes 11 | . 1 . . . 4 2 . . 2 . 1 . . . . . . . . . . . 1 . . Destroy 1 | . 1 . . . . . . . . . . . . . . . . . . . . . . . . Blast 4 | . . . . . 4 . . . . . . . . . . . . . . . . . . . . Sever 2 | . . . . . . 2 . . . . . . . . . . . . . . . . . . . Impale 4 | . . . . . . . . . 2 . 1 . . . . . . . . . . . 1 . . Melee Attacks 551 | . . . 6 . 1 68 . 49 84 . 72 . . 5 11 68 . 53 56 2 35 11 22 2 6 Impact . | . . . . . . . . . . . . . . . . . . . . . . . . . . Slashing 390 | . . . . . 1 65 . 43 . . 61 . . 5 11 67 . 53 56 2 26 . . . . Piercing 149 | . . . . . . . . 6 82 . 11 . . . . . . . . . 9 11 22 2 6 Sneak Attacks 93 | . . . 5 . 1 11 . 5 9 . 13 . . 4 1 14 . 9 10 . 6 1 4 . . Combat Hostiles 7 | . . . . . . 3 . . . . . . . . . 3 . . . . . 1 . . . Follow-up Attacks 1 | . . . . . . . . . . . . . . . . 1 . . . . . . . . . Damage Inflicted 30577 | . 1101 244 . . 2011 2082 . 883 1735 . 5494 1118 931 471 198 2975 2526 3093 2768 . 1465 923 559 . . Guns 2105 | . 1019 42 . . 213 . . . . . . . . . . . . . 831 . . . . . . Cannons 1707 | . . . . . 1707 . . . . . . . . . . . . . . . . . . . . Explosions 15092 | . 82 191 . . . 941 . 33 655 . 4024 1118 931 . . 1280 2526 1707 389 . 524 691 . . . Melee 11636 | . . . . . 65 1141 . 850 1080 . 1470 . . 471 198 1695 . 1386 1548 . 941 232 559 . . Ramming 37 | . . 11 . . 26 . . . . . . . . . . . . . . . . . . . . Kinetic 2965 | . 1003 42 . . 1920 . . . . . . . . . . . . . . . . . . . . Thermal 2009 | . . . . . . 611 . . . . . . . . . 111 98 . 1189 . . . . . . Explosive 12533 | . 82 191 . . . 330 . 33 655 . 3574 1118 . . . 1169 2428 1707 31 . 524 691 . . . Electromagnetic 1397 | . 16 . . . . . . . . . 450 . 931 . . . . . . . . . . . . Impact . | . . . . . . . . . . . . . . . . . . . . . . . . . . Slashing 9314 | . . . . . 65 1141 . 850 . . 1223 . . 471 198 1695 . 1386 1548 . 737 . . . . Piercing 2322 | . . . . . . . . . 1080 . 247 . . . . . . . . . 204 232 559 . . Highest Corruption 21 | . 1 1 1 1 . 4 10 15 . 8 11 4 4 4 . . . . 15 21 21 . . . . Average Corruption 6 | . 1 1 1 1 . 3 7 10 . 8 8 4 4 3 . . . . 8 19 8 . . . . Corruption Purged 39 | . . . . . . 1 . . . . 11 . . 4 . . . . . . 23 . . . . Corruption Blocked . | . . . . . . . . . . . . . . . . . . . . . . . . . . Effects 149 | . . 2 4 . . 7 1 31 . . 29 8 6 2 . . . . 35 3 21 . . . . Message Errors 36 | . . 1 1 . . 2 . 5 . . 9 1 2 . . . . . 11 1 3 . . . . Matter Fused 34 | . . . . . . 1 . 7 . . 9 1 3 1 . . . . 7 . 5 . . . . Heat Flow Errors 16 | . . . 1 . . . . 2 . . 3 2 . 1 . . . . 3 . 4 . . . . Energy Discharges 26 | . . . 1 . . 1 1 9 . . 5 1 . . . . . . 4 . 4 . . . . Parts Rejected 1 | . . . . . . . . 1 . . . . . . . . . . . . . . . . . Data Loss (minor) 19 | . . . . . . 3 . 3 . . . 3 1 . . . . . 4 1 4 . . . . Data Loss (major) 7 | . . . . . . . . 1 . . 2 . . . . . . . 3 . 1 . . . . Alerts 3 | . . 1 1 . . . . . . . 1 . . . . . . . . . . . . . . Misdirections 5 | . . . . . . . . 3 . . . . . . . . . . 1 1 . . . . . Weapon Failures 2 | . . . . . . . . . . . . . . . . . . . 2 . . . . . . Overload Shots 2 | . . . . . . . . . . . . . . . . . . . 2 . . . . . . Overflow Damage 3209 | . . 42 . . 46 186 . 236 165 . 595 51 . 139 56 438 30 291 165 . 274 12 483 . . Projectiles 46 | . . . . . 46 . . . . . . . . . . . . . . . . . . . . Explosions 400 | . . 42 . . . 40 . . 22 . 99 51 . . . 93 30 13 . . . 10 . . . Melee 2763 | . . . . . . 146 . 236 143 . 496 . . 139 56 345 . 278 165 . 274 2 483 . . Knockbacks 14 | . . . . . 14 . . . . . . . . . . . . . . . . . . . . Impact . | . . . . . . . . . . . . . . . . . . . . . . . . . . Kinetic 12 | . . . . . 12 . . . . . . . . . . . . . . . . . . . . Secondary 2 | . . . . . 2 . . . . . . . . . . . . . . . . . . . . Self-Inflicted Damage 62 | . . . . . . . . . 34 . 5 . . . . . . 23 . . . . . . . Shots 3 | . . . . . . . . . 1 . 1 . . . . . . 1 . . . . . . . Rammed 6 | . . 1 . . 5 . . . . . . . . . . . . . . . . . . . . Targets Rammed 6 | . . 1 . . 5 . . . . . . . . . . . . . . . . . . . . Kicked . | . . . . . . . . . . . . . . . . . . . . . . . . . . Crushed . | . . . . . . . . . . . . . . . . . . . . . . . . . . Highest Temperature 360 | . 61 . 179 . 324 1 . 170 5 . 240 254 38 123 . 72 56 258 360 . 217 36 38 74 230 Average Temperature 55 | . 20 . 172 . 105 1 . 85 5 . 56 90 19 57 . 15 18 25 78 . 87 20 14 35 179 Received Heat Transfer 928 | . 255 . . . 225 18 . 48 64 . 111 . 18 12 33 30 . 27 42 . 18 18 . 9 . Siege Activations . | . . . . . . . . . . . . . . . . . . . . . . . . . . Robots Corrupted 10 | . . . . . . . . . . . 3 . 7 . . . . . . . . . . . . Combat Hostiles 10 | . . . . . . . . . . . 3 . 7 . . . . . . . . . . . . Parts Fried 9 | . . . . . . . . . . . 2 . 4 . . . . 3 . . . . . . . Impact Corruptions . | . . . . . . . . . . . . . . . . . . . . . . . . . . Robots Melted . | . . . . . . . . . . . . . . . . . . . . . . . . . . Combat Hostiles . | . . . . . . . . . . . . . . . . . . . . . . . . . . Parts Melted 3 | . . . . . . 2 . . . . . . . . . . . . 1 . . . . . . Heat Transferred 1788 | . . . . . . 400 . . . . . . . . . 50 100 . 1238 . . . . . . Parts Sabotaged . | . . . . . . . . . . . . . . . . . . . . . . . . . . Parts Stolen . | . . . . . . . . . . . . . . . . . . . . . . . . . . Parts Stripped . | . . . . . . . . . . . . . . . . . . . . . . . . . . Power Chain Reactions 1 | . . . . . . . . . . . . . . . . . 1 . . . . . . . . Alert | -11 -10 -10 -10 -9 -8 -7 -7 -7 -6 -6 -6 -6 -6 -6 -6 -5 -5 -5 -4 -4 -4 -4 -3 -2 -1 ------- Run | Yrd Mat Min Exi Min Mat Fac Was Fac Fac Was Fac Ext Cet Arc Hub Fac Was Fac Fac Was Fac Arm Res Res Acc Peak Influence 896 | . 155 95 . . 334 474 137 289 409 167 896 453 392 418 299 639 392 513 507 143 368 717 565 71 174 Initial 438 | . . 28 . . . 114 122 95 4 137 109 438 218 156 146 146 223 274 251 92 99 155 375 35 42 Average 245 | . 77 81 . . 181 279 133 116 172 149 456 168 354 359 101 253 337 283 319 108 230 325 319 43 75 Maximum Alert Level 3 | . . . . . 1 2 . 1 2 . 3 2 1 2 1 2 1 2 2 . 1 3 2 . . Low Security (%) 45 | 100 100 100 . 100 56 26 100 75 53 100 25 72 . 10 86 42 . 27 5 100 41 33 34 100 100 Level 1 36 | . . . . . 43 49 . 24 46 . 10 8 100 43 13 39 100 49 76 . 58 40 12 . . Level 2 15 | . . . . . . 23 . . . . 48 18 . 45 . 18 . 22 18 . . 25 53 . . Level 3 1 | . . . . . . . . . . . 15 . . . . . . . . . . 1 . . . Level 4 . | . . . . . . . . . . . . . . . . . . . . . . . . . . Level 5 . | . . . . . . . . . . . . . . . . . . . . . . . . . . High Security . | . . . . . . . . . . . . . . . . . . . . . . . . . . Max Security . | . . . . . . . . . . . . . . . . . . . . . . . . . . Squads Dispatched 86 | . 1 . . . 2 10 . 3 11 . 9 2 . . 8 4 . 6 10 . 9 3 7 . 1 Investigation 51 | . . . . . . 6 . 2 7 . 6 1 . . 4 4 . 3 5 . 6 2 5 . . Extermination 7 | . . . . . . 2 . . 1 . 1 . . . . . . . 1 . 2 . . . . Reinforcement 25 | . 1 . . . 2 1 . . 3 . 1 1 . . 4 . . 3 4 . 1 1 2 . 1 Assault 2 | . . . . . . 1 . . . . 1 . . . . . . . . . . . . . . Garrison 1 | . . . . . . . . 1 . . . . . . . . . . . . . . . . . Intercept . | . . . . . . . . . . . . . . . . . . . . . . . . . . Searches Triggered 4 | . . . . . . . . . . . 2 . . . . 1 . . 1 . . . . . . Construction Impeded 3 | . . . . . . . . . 1 . 1 1 . . . . . . . . . . . . . Haulers Reinforced 2 | . . . . . . . . . . . . . . . . . . 1 1 . . . . . . Active Scanning Responses . | . . . . . . . . . . . . . . . . . . . . . . . . . . Cargo Convoy Interrupts 1 | . . . . . . . . . . . . . . . . 1 . . . . . . . . . Stealth | -11 -10 -10 -10 -9 -8 -7 -7 -7 -6 -6 -6 -6 -6 -6 -6 -5 -5 -5 -4 -4 -4 -4 -3 -2 -1 --------- Run | Yrd Mat Min Exi Min Mat Fac Was Fac Fac Was Fac Ext Cet Arc Hub Fac Was Fac Fac Was Fac Arm Res Res Acc Distress Signals 37 | . 1 . . . 3 1 . . 3 . 2 2 2 . 2 11 . 5 3 . . 1 1 . . Communications Jammed . | . . . . . . . . . . . . . . . . . . . . . . . . . . Distress Signals . | . . . . . . . . . . . . . . . . . . . . . . . . . . Times Spotted 410 | . 16 3 . . 20 22 7 19 32 4 48 11 9 3 16 47 5 38 26 5 31 37 7 1 3 Peak Tracking Total 14 | . 3 3 . . 5 4 6 6 6 5 10 5 5 1 12 14 4 6 7 3 11 14 4 1 2 Tactical Retreats 93 | . . . . . 1 6 . 5 8 . 19 2 . . 2 16 . 8 11 . 7 6 2 . . Traps | -11 -10 -10 -10 -9 -8 -7 -7 -7 -6 -6 -6 -6 -6 -6 -6 -5 -5 -5 -4 -4 -4 -4 -3 -2 -1 ------- Run | Yrd Mat Min Exi Min Mat Fac Was Fac Fac Was Fac Ext Cet Arc Hub Fac Was Fac Fac Was Fac Arm Res Res Acc Traps Triggered 26 | . 1 . . . . 1 . 3 6 . 6 1 . . . 1 . 1 4 . 1 . . . 1 Indirectly . | . . . . . . . . . . . . . . . . . . . . . . . . . . Trap Hack Attempts 56 | . . . . . . . . 1 22 . 21 . . . . . . 12 . . . . . . . Triggered . | . . . . . . . . . . . . . . . . . . . . . . . . . . Disarmed 40 | . . . . . . 6 . 1 1 . . . . . . 6 . 2 12 . 4 2 6 . . Reprogrammed 85 | . . . . . . 15 . 6 6 . 6 . . . . 13 . 14 10 . 2 7 6 . . Reused 33 | . . . . . . 5 . 1 . . . . . . . 5 . 6 8 . 2 3 3 . . Traps Extracted 33 | . . . . . . . . . 5 . 6 . . . . 7 . 15 . . . . . . . Installed 26 | . . . . . . . . . . . 5 . . . . 6 . 11 2 . 2 . . . . Triggered 34 | . . . . . . 5 . 1 . . . . . . . 5 . 6 8 . 2 3 4 . . Most Traps Carried 7 | . . . . . . . . . 5 5 6 6 6 6 6 7 . 6 4 2 2 . . . . Objects Rigged 14 | . . . . . . 6 . . 2 . 2 . . . . 4 . . . . . . . . . Exploded 6 | . . . . . . 2 . . . . 1 . . . . 3 . . . . . . . . . Machines | -11 -10 -10 -10 -9 -8 -7 -7 -7 -6 -6 -6 -6 -6 -6 -6 -5 -5 -5 -4 -4 -4 -4 -3 -2 -1 ---------- Run | Yrd Mat Min Exi Min Mat Fac Was Fac Fac Was Fac Ext Cet Arc Hub Fac Was Fac Fac Was Fac Arm Res Res Acc Machines Disabled 43 | . . . . . 1 7 . . 3 . 10 1 . 1 3 5 . 3 5 . . 4 . . . Max in Single Turn 4 | . . . . . 1 4 . . 1 . 3 1 . . 1 2 . 2 3 . . 1 . . . Garrison Access 23 | . . . . . . 3 . 2 3 . 4 . . . 1 2 . 2 2 . 2 . 2 . . Network Hub 3 | . . . . . . . . . . . . . . . 3 . . . . . . . . . . Machines Repaired . | . . . . . . . . . . . . . . . . . . . . . . . . . . Machines Dismantled 1 | . . . . . . . . . . . . . . . 1 . . . . . . . . . . Machines Sabotaged 2 | . . . . . . . . . . . . . . . 2 . . . . . . . . . . Overloaded Fab Kills 2 | . . . . . . . . . . . . . . . . . . . . . . 2 . . . Hacking | -11 -10 -10 -10 -9 -8 -7 -7 -7 -6 -6 -6 -6 -6 -6 -6 -5 -5 -5 -4 -4 -4 -4 -3 -2 -1 --------- Run | Yrd Mat Min Exi Min Mat Fac Was Fac Fac Was Fac Ext Cet Arc Hub Fac Was Fac Fac Was Fac Arm Res Res Acc Machines Accessed 228 | . 6 . 2 . 7 22 . 19 29 . 22 16 . . 10 22 . 17 17 . 18 7 11 1 2 Terminals 139 | . 6 . . . 5 13 . 10 16 . 9 16 . . 9 13 . 9 10 . 11 5 4 1 2 Fabricators 40 | . . . . . . 4 . 3 6 . 5 . . . . 5 . 3 3 . 5 2 4 . . Repair Stations 12 | . . . . . . 2 . 1 1 . 3 . . . . 1 . 1 2 . . . 1 . . Recycling Units 2 | . . . . . . . . . 1 . . . . . . 1 . . . . . . . . . Scanalyzers 9 | . . . . . 1 . . 3 2 . 1 . . . . . . 2 . . . . . . . Garrison Access 24 | . . . . . 1 3 . 2 3 . 4 . . . 1 2 . 2 2 . 2 . 2 . . Total Hacks 977 | . 31 . 2 . 21 75 . 63 97 . 66 46 . . 31 126 . 107 92 . 106 34 69 4 7 Successful 758 | . 17 . 2 . 12 52 . 52 81 . 57 37 . . 29 108 . 91 72 . 67 24 51 4 2 Failed 215 | . 13 . . . 9 22 . 11 16 . 9 8 . . 2 17 . 16 20 . 39 10 18 . 5 Catastrophic 20 | . . . . . 1 1 . 1 . . 1 1 . . . 1 . 1 2 . 8 . 2 . 1 Database Lockouts 4 | . 1 . . . . 1 . . . . . 1 . . . 1 . . . . . . . . . Manual 623 | . 24 . 1 . 14 50 . 33 56 . 31 33 1 . 25 86 . 56 69 . 77 29 31 4 3 Terminals 687 | . 31 . . . 15 49 . 37 57 . 32 46 . . 30 97 . 72 69 . 74 30 37 4 7 Fabricators 181 | . . . . . . 16 . 13 21 . 19 . . . . 20 . 19 18 . 30 4 21 . . Repair Stations 33 | . . . . . . 5 . 2 5 . 9 . . . . 2 . 2 3 . . . 5 . . Recycling Units 11 | . . . . . . . . . 6 . . . . . . 5 . . . . . . . . . Scanalyzers 32 | . . . . . 4 . . 9 5 . 2 . . . . . . 12 . . . . . . . Garrison Access 31 | . . . . . 2 5 . 2 3 . 4 . . . 1 2 . 2 2 . 2 . 6 . . Terminal Hacks 272 | . 6 . 2 . 1 16 . 14 22 . 12 24 . . 11 46 . 37 28 . 23 11 16 1 2 Record 3 | . 1 . 1 . . . . . . . . . . . . . . 1 . . . . . . . Part Schematic 29 | . . . . . . 2 . 2 4 . . 2 . . . 4 . 7 3 . 1 . 4 . . Robot Analysis 8 | . 2 . . . . . . 2 . . . 4 . . . . . . . . . . . . . Prototype ID Bank 17 | . . . . . 1 1 . 1 2 . 1 . . . . 5 . 3 1 . . . 2 . . Open Door 6 | . . . . . . . . . . . . 5 . . . . . . . . . . . . 1 Level Access Points 6 | . . . . . . . . . . . . . . . 1 1 . 1 . . . 1 . 1 1 Branch Access Points 5 | . . . . . . . . . 1 . . . . . . 2 . 1 . . 1 . . . . Machine Index 6 | . . . . . . . . 1 1 . 1 1 . . . . . . 1 . . . 1 . . Terminal Index 8 | . . . . . . . . 1 1 . 1 . . . 1 . . 1 1 . 1 1 . . . Fabricator Index 4 | . . . . . . . . . 1 . . . . . . 1 . 1 . . . 1 . . . Repair Station Index 1 | . . . . . . . . . . . . . . . . 1 . . . . . . . . . Recycling Unit Index 1 | . . . . . . . . . . . . . . . . . . . . . 1 . . . . Scanalyzer Index 3 | . . . . . . . . . . . . . . . . 1 . 1 1 . . . . . . Garrison Index 3 | . . . . . . . . . . . . . . . . 1 . 1 . . 1 . . . . Alert Level 15 | . 1 . . . . 1 . 1 . . 1 3 . . 1 4 . 1 . . 1 . 1 . . Unreport Threat 31 | . . . . . . 3 . 1 2 . 3 3 . . 2 5 . 4 2 . 2 1 3 . . Locate Traps 30 | . 1 . . . . 1 . 3 3 . 2 2 . . . 8 . 3 3 . 1 1 2 . . Disarm Traps 8 | . . . . . . 1 . . . . . . . . . 1 . 1 2 . 1 1 1 . . Reprogram Traps 16 | . . . . . . 3 . 1 . . . . . . . 3 . 2 2 . 2 2 1 . . Dispatch Records 9 | . 1 . . . . . . . 1 . 1 . . . 1 1 . 1 1 . 1 1 . . . Maintenance Status 1 | . . . . . . . . . . . . . . . . 1 . . . . . . . . . Surveillance Status 2 | . . . . . . . . . . . . . . . . . . 1 1 . . . . . . Patrol Status 8 | . . . . . . 1 . . . . 1 . . . . 1 . 2 1 . . 2 . . . Transport Status 1 | . . . . . . . . . . . . 1 . . . . . . . . . . . . . Reinforcement Status 1 | . . . . . . . . . . . . . . . . . . 1 . . . . . . . Recall Investigation 14 | . . . . . . . . . 5 . 1 . . . . . . . 2 . 6 . . . . Recall Extermination 6 | . . . . . . 1 . . 1 . . . . . . . . . 2 . 2 . . . . Recall Reinforcements 8 | . . . . . . . . . . . . 1 . . 2 . . 2 2 . 1 . . . . Recall Assault 1 | . . . . . . . . . . . . . . . . 1 . . . . . . . . . Hauler Manifests 1 | . . . . . . . . . . . . 1 . . . . . . . . . . . . . Registered Components 1 | . . . . . . . . . . . . . . . . 1 . . . . . . . . . Registered Prototypes 1 | . . . . . . . . . . . . . . . . 1 . . . . . . . . . Zone Layout 17 | . . . . . . 2 . 1 . . . 1 . . 3 3 . 2 3 . 1 . 1 . . Derelict Proto ID Bank 1 | . . . 1 . . . . . . . . . . . . . . . . . . . . . . Fabricator Hacks 91 | . . . . . . 8 . 9 12 . 11 . . . . 8 . 9 7 . 11 2 14 . . Network Status 5 | . . . . . . 1 . . . . . . . . . . . 1 1 . 1 . 1 . . Load Schematic 50 | . . . . . . 4 . 6 6 . 7 . . . . 5 . 5 3 . 5 1 8 . . Build 36 | . . . . . . 3 . 3 6 . 4 . . . . 3 . 3 3 . 5 1 5 . . Repair Station Hacks 23 | . . . . . . 1 . 2 4 . 8 . . . . 1 . 2 2 . . . 3 . . Scan Component 8 | . . . . . . . . 1 2 . 3 . . . . . . 1 . . . . 1 . . Repair 8 | . . . . . . . . 1 2 . 3 . . . . . . 1 . . . . 1 . . Refit 7 | . . . . . . 1 . . . . 2 . . . . 1 . . 2 . . . 1 . . Recycling Unit Hacks 2 | . . . . . . . . . 1 . . . . . . 1 . . . . . . . . . Retrieve Components 2 | . . . . . . . . . 1 . . . . . . 1 . . . . . . . . . Scanalyzer 30 | . . . . . 3 . . 9 5 . 2 . . . . . . 11 . . . . . . . Insert Component 13 | . . . . . 1 . . 4 2 . 1 . . . . . . 5 . . . . . . . Analyze 17 | . . . . . 2 . . 5 3 . 1 . . . . . . 6 . . . . . . . Garrison Access Hacks 23 | . . . . . 1 2 . 2 3 . 4 . . . 1 2 . 2 2 . 2 . 2 . . Unlock Access 1 | . . . . . 1 . . . . . . . . . . . . . . . . . . . . Seal Access 22 | . . . . . . 2 . 2 3 . 4 . . . 1 2 . 2 2 . 2 . 2 . . Unauthorized Hacks 317 | . 11 . . . 7 25 . 16 34 . 20 13 . . 17 50 . 30 33 . 31 11 16 3 . Terminals 229 | . 11 . . . 7 19 . 13 24 . 13 13 . . 17 34 . 20 21 . 16 9 9 3 . Track 13 | . . . . . . . . . . . . . . . . 5 . 2 4 . 2 . . . . Assimilate 16 | . . . . . . 2 . 2 3 . 2 . . . 1 2 . 2 1 . 1 . . . . Botnet 88 | . 4 . . . 1 8 . 5 11 . 5 6 . . 7 13 . 6 8 . 5 4 4 1 . Detonate 4 | . . . . . . 1 . . 1 . 1 . . . . 1 . . . . . . . . . Disrupt 7 | . . . . . . . . . . . . 1 . . . 2 . . . . 1 3 . . . Operators 19 | . 1 . . . 1 1 . 1 1 . . 1 . . . 3 . 3 2 . 2 1 1 1 . Skim 78 | . 6 . . . 5 7 . 5 8 . 5 5 . . 5 8 . 7 6 . 5 1 4 1 . Sabotage 4 | . . . . . . . . . . . . . . . 4 . . . . . . . . . . Fabricators 78 | . . . . . . 6 . 3 7 . 6 . . . . 11 . 10 11 . 15 2 7 . . Report 12 | . . . . . . 1 . . . . . . . . . 2 . 2 3 . 3 . 1 . . Prioritize 22 | . . . . . . 1 . 1 5 . 2 . . . . 2 . 2 3 . 5 . 1 . . Liberate 19 | . . . . . . 2 . . 2 . 2 . . . . 2 . 2 3 . 5 . 1 . . Haulers 9 | . . . . . . . . . . . . . . . . 2 . 2 2 . 2 . 1 . . Overload 1 | . . . . . . . . . . . . . . . . . . . . . . 1 . . . Download 1 | . . . . . . . . . . . . . . . . 1 . . . . . . . . . Recompile 14 | . . . . . . 2 . 2 . . 2 . . . . 2 . 2 . . . 1 3 . . Repair Stations 3 | . . . . . . . . . . . 1 . . . . 1 . . 1 . . . . . . Patch 3 | . . . . . . . . . . . 1 . . . . 1 . . 1 . . . . . . Recycling Units 7 | . . . . . . . . . 3 . . . . . . 4 . . . . . . . . . Monitor 1 | . . . . . . . . . . . . . . . . 1 . . . . . . . . . Reject 2 | . . . . . . . . . 1 . . . . . . 1 . . . . . . . . . Recyclers 2 | . . . . . . . . . 1 . . . . . . 1 . . . . . . . . . Mask 2 | . . . . . . . . . 1 . . . . . . 1 . . . . . . . . . Scanalyzers . | . . . . . . . . . . . . . . . . . . . . . . . . . . Garrison Access . | . . . . . . . . . . . . . . . . . . . . . . . . . . Data Cores Recovered 10 | . . . . . 1 2 . 2 2 . . . . . . . . 1 . . 2 . . . . Used 9 | . . . . . . 2 . 2 2 . . . . . . . . 1 . . 2 . . . . Hacking Detections 173 | . 6 . . . 7 19 . 15 26 . 15 13 . . 9 11 . 11 13 . 15 4 8 . 1 Full Trace Events 27 | . 1 . . . . 4 . . 7 . 3 . . . . . . 1 4 . 6 . 1 . . Feedback Events 4 | . . . . . . 2 . . . . . . . . . . . . 1 . 1 . . . . Corruption 2 | . . . . . . 1 . . . . . . . . . . . . . . 1 . . . . Hackware Fried 2 | . . . . . . 1 . . . . . . . . . . . . 1 . . . . . . Feedback Blocked . | . . . . . . . . . . . . . . . . . . . . . . . . . . Robot Schematics Acquired . | . . . . . . . . . . . . . . . . . . . . . . . . . . Robots Built 2 | . . . . . . . . . . . . . . . . 2 . . . . . . . . . Authchips . | . . . . . . . . . . . . . . . . . . . . . . . . . . Time 227 | . . . . . . . . . . . . . . . . 40 . . . . . 187 . . . Total Robot Build Rating 2 | . . . . . . . . . . . . . . . . 2 . . . . . . . . . Part Schematics Acquired 43 | . . . . . 1 2 . 6 6 . 1 2 . . . 5 . 12 3 . 1 . 4 . . Parts Built 39 | . . . . . . 3 . 3 7 . 5 . . . . 3 . 3 3 . 7 . 5 . . Authchips 14 | . . . . . . 1 . 3 . . 2 . . . . 2 . 2 . . . . 4 . . Time 1709 | . . . . . . 259 . 135 265 . 233 . . . . 63 . 164 220 . 234 . 136 . . Total Part Build Rating 220 | . . . . . . 12 . 15 28 . 28 . . . . 14 . 22 22 . 43 . 36 . . Parts Repaired 8 | . . . . . . . . 1 2 . 3 . . . . . . 1 . . . . 1 . . Time 414 | . . . . . . . . 56 73 . 201 . . . . . . 44 . . . . 40 . . Parts Recycled . | . . . . . . . . . . . . . . . . . . . . . . . . . . Recycled Matter . | . . . . . . . . . . . . . . . . . . . . . . . . . . Retrieved Matter . | . . . . . . . . . . . . . . . . . . . . . . . . . . Retrieved Components 2 | . . . . . . . . . 1 . . . . . . 1 . . . . . . . . . Parts Scanalyzed 13 | . . . . . 1 . . 4 2 . 1 . . . . . . 5 . . . . . . . Part Schematics Acquired 13 | . . . . . 1 . . 4 2 . 1 . . . . . . 5 . . . . . . . Parts Damaged . | . . . . . . . . . . . . . . . . . . . . . . . . . . Bothacking | -11 -10 -10 -10 -9 -8 -7 -7 -7 -6 -6 -6 -6 -6 -6 -6 -5 -5 -5 -4 -4 -4 -4 -3 -2 -1 ------------ Run | Yrd Mat Min Exi Min Mat Fac Was Fac Fac Was Fac Ext Cet Arc Hub Fac Was Fac Fac Was Fac Arm Res Res Acc Used RIF Installer . | . . . . . . . . . . . . . . . . . . . . . . . . . . Robots Hacked 6 | . . . 4 . . . . . 1 . . . . . . 1 . . . . . . . . . Non-combat 5 | . . . 3 . . . . . 1 . . . . . . 1 . . . . . . . . . Combat 1 | . . . 1 . . . . . . . . . . . . . . . . . . . . . . Robot Hacks Applied 7 | . . . 5 . . . . . 1 . . . . . . 1 . . . . . . . . . parse_system 5 | . . . 5 . . . . . . . . . . . . . . . . . . . . . . find_chute 2 | . . . . . . . . . 1 . . . . . . 1 . . . . . . . . . Relay Couplers Released 4 | . . . . . . 2 . . . . 1 . . . . . . . . . . . 1 . . Machine Destruction 4 | . . . . . . 2 . . . . 1 . . . . . . . . . . . 1 . . Fabnet Peak Effective % . | . . . . . . . . . . . . . . . . . . . . . . . . . . Robots Rewired 14 | . . . . . . 2 . . . . . 11 1 . . . . . . . . . . . . Allies Hacked . | . . . . . . . . . . . . . . . . . . . . . . . . . . Hacks Repelled . | . . . . . . . . . . . . . . . . . . . . . . . . . . Allies | -11 -10 -10 -10 -9 -8 -7 -7 -7 -6 -6 -6 -6 -6 -6 -6 -5 -5 -5 -4 -4 -4 -4 -3 -2 -1 -------- Run | Yrd Mat Min Exi Min Mat Fac Was Fac Fac Was Fac Ext Cet Arc Hub Fac Was Fac Fac Was Fac Arm Res Res Acc Total Allies 78 | . . . . . . 3 . 1 3 . 4 18 6 . . 2 18 4 . 19 . . . . . Largest Group 19 | . . . . . . 3 . 1 3 1 3 6 7 7 5 2 18 11 . 19 . . . . . Highest-Rated Group 721 | . . . . . . 56 . 26 74 10 90 297 721 721 473 20 638 431 . 684 . . . . . Highest-Rated Ally 159 | . . . . . . 25 . 26 32 10 32 159 159 159 96 10 50 46 . 50 . . . . . Total Orders 11 | . . . . . . 2 . . . . 1 2 . 5 . . . 1 . . . . . . . STAY 4 | . . . . . . 1 . . . . 1 1 . . . . . 1 . . . . . . . ROAM 1 | . . . . . . . . . . . . . . 1 . . . . . . . . . . . FOLLOW 6 | . . . . . . 1 . . . . . 1 . 4 . . . . . . . . . . . Ally Attacks 315 | . . . . . 11 14 . . 5 . 10 79 7 38 36 . 64 31 . 20 . . . . . Total Damage 11090 | . . . . . 601 456 . . 213 . 401 1610 194 1959 1500 . 2699 356 . 1101 . . . . . Kills 55 | . . . . . 5 6 . . 4 . 3 13 . 6 6 . 6 4 . 2 . . . . . Allies Corrupted 2 | . . . . . . . . . . . . 1 . . . . . 1 . . . . . . . Allies Melted . | . . . . . . . . . . . . . . . . . . . . . . . . . . Turrets Deployed 3 | . . . . . 2 1 . . . . . . . . . . . . . . . . . . . Intel | -11 -10 -10 -10 -9 -8 -7 -7 -7 -6 -6 -6 -6 -6 -6 -6 -5 -5 -5 -4 -4 -4 -4 -3 -2 -1 ------- Run | Yrd Mat Min Exi Min Mat Fac Was Fac Fac Was Fac Ext Cet Arc Hub Fac Was Fac Fac Was Fac Arm Res Res Acc Robot Analysis Total 8 | . 2 . . . . . . 2 . . . 4 . . . . . . . . . . . . . Derelict Logs Recovered 2 | . . 2 . . . . . . . . . . . . . . . . . . . . . . . Drone Launches . | . . . . . . . . . . . . . . . . . . . . . . . . . . Drone Recoveries . | . . . . . . . . . . . . . . . . . . . . . . . . . . Exploration | -11 -10 -10 -10 -9 -8 -7 -7 -7 -6 -6 -6 -6 -6 -6 -6 -5 -5 -5 -4 -4 -4 -4 -3 -2 -1 ------------- Run | Yrd Mat Min Exi Min Mat Fac Was Fac Fac Was Fac Ext Cet Arc Hub Fac Was Fac Fac Was Fac Arm Res Res Acc Turns Passed 16216 | 41 1180 236 506 27 1852 1110 38 935 1190 19 1900 570 197 190 242 1158 153 1121 1286 45 1328 244 557 21 70 Spaces Moved 26362 | 38 591 133 305 16 745 2548 134 1363 2851 70 3431 885 235 160 540 2699 221 2060 2584 138 2450 610 1224 64 267 Core 19 | 19 . . . . . . . . . . . . . . . . . . . . . . . . . Treads 1724 | . 584 133 305 16 686 . . . . . . . . . . . . . . . . . . . . Legs . | . . . . . . . . . . . . . . . . . . . . . . . . . . Wheels 26 | 19 7 . . . . . . . . . . . . . . . . . . . . . . . . Hover . | . . . . . . . . . . . . . . . . . . . . . . . . . . Flight 24593 | . . . . . 59 2548 134 1363 2851 70 3431 885 235 160 540 2699 221 2060 2584 138 2450 610 1224 64 267 Fastest Speed 7 | 50 95 160 160 160 99 26 26 26 23 25 14 11 17 26 26 24 27 23 21 28 28 26 24 21 7 Average Speed 36 | 72 159 160 160 160 155 26 26 38 24 25 24 23 24 26 29 28 27 25 27 28 32 30 24 21 17 Slowest Speed 240 | 95 160 160 160 160 240 26 26 94 95 25 27 24 91 26 100 34 27 113 93 28 93 89 28 21 87 Overloaded Moves 166 | . . . . . . . . . . . 61 28 32 . . 20 . . . . . . . . 25 Propulsion Burnouts . | . . . . . . . . . . . . . . . . . . . . . . . . . . Robots Hopped 120 | . . . . . . 9 2 5 13 . 16 13 . . 10 15 . 5 11 2 13 4 . . 2 Cave-ins Triggered 2 | . . . . . . 1 . . . . . . . . . . . . 1 . . . . . . Exploration Rate (%) 54 | 4 91 42 64 4 52 66 91 49 71 75 63 85 56 88 59 58 87 54 52 80 48 48 28 3 10 Regions Visited 25 Branch Regions 8 Pre-discovered Areas 13 | . . . 1 1 1 1 . 3 3 . . . . . 1 . . . 1 . 1 . . . . Known Exits Taken 10 | . . 1 . . 1 . . . . . 1 . . 1 1 . . 1 . . 1 1 1 1 . Unknown Exits Taken 7 | 1 1 . 1 1 . . . 1 . . . 1 1 . . . . . . . . . . . . Scrap Searched 1 | . . 1 . . . . . . . . . . . . . . . . . . . . . . . Spaces Dug 420 | . 3 . . . 1 67 . 18 51 . 85 . . . 10 35 . 30 67 2 25 4 15 2 5 Terrain Destroyed 1283 | . 3 7 . . 26 99 . 30 84 . 205 77 . . 11 129 222 169 107 2 40 50 15 2 5 Melee 312 | . . . . . . 36 . 18 49 . 49 . . . 7 35 . 30 35 2 25 4 15 2 5 Projectile 54 | . . . . . 26 . . . 4 . 11 . . . 4 . . . 9 . . . . . . AOE 917 | . 3 7 . . . 63 . 12 31 . 145 77 . . . 94 222 139 63 . 15 46 . . . Terrain Rammed . | . . . . . . . . . . . . . . . . . . . . . . . . . . Walls Destroyed . | . . . . . . . . . . . . . . . . . . . . . . . . . . Machines Disabled . | . . . . . . . . . . . . . . . . . . . . . . . . . . Actions | -11 -10 -10 -10 -9 -8 -7 -7 -7 -6 -6 -6 -6 -6 -6 -6 -5 -5 -5 -4 -4 -4 -4 -3 -2 -1 --------- Run | Yrd Mat Min Exi Min Mat Fac Was Fac Fac Was Fac Ext Cet Arc Hub Fac Was Fac Fac Was Fac Arm Res Res Acc Total 31551 | 49 709 146 321 17 1333 2879 134 1688 3184 71 4307 1216 361 300 578 2978 297 2533 2992 137 2899 637 1441 67 277 Wait 3485 | . 14 . . . 428 232 . 214 124 . 627 300 104 131 11 125 56 308 276 . 374 4 157 . . Move 26116 | 37 590 132 304 15 744 2532 130 1354 2826 69 3399 862 234 159 520 2672 220 2049 2560 134 2422 603 1223 63 263 Hop 100 | . . . . . . 7 1 3 12 . 15 9 . . 9 12 . 5 11 1 12 2 . . 1 Pick Up 179 | 6 18 2 3 . 24 15 2 8 12 1 17 . 3 1 . 23 1 9 10 . 9 2 12 . 1 Fast Attach 89 | 4 2 . . . 7 3 . 4 12 . 2 3 . 1 2 13 . 2 11 . 13 . 7 . 3 Attach 74 | 2 . . 1 1 7 6 . 4 5 . 9 . 1 . 4 9 . 5 6 . 3 2 5 2 2 Detach 39 | . . . 1 . 4 3 . . 4 . 4 1 . . 4 3 . 2 8 . 4 . 1 . . Swap 191 | . 7 2 3 1 13 5 . 13 18 . 26 5 7 1 4 20 9 34 9 . 4 6 3 . 1 Drop 183 | . 10 2 3 . 39 6 1 5 17 1 14 1 2 2 3 25 1 9 14 . 16 1 11 . . Fire 290 | . 68 7 . . 61 2 . 1 17 . 42 10 9 . 5 6 10 16 27 . 3 6 . . . Melee 543 | . . . 6 . 1 68 . 45 84 . 72 . . 5 11 64 . 53 56 2 35 11 22 2 6 Ram . | . . . . . . . . . . . . . . . . . . . . . . . . . . Kick . | . . . . . . . . . . . . . . . . . . . . . . . . . . Crush 6 | . . 1 . . 5 . . . . . . . . . . . . . . . . . . . . Escape Stasis 149 | . . . . . . . . 36 31 . 54 6 . . . . . 18 2 . 2 . . . . Rewire 20 | . . . . . . . . . . . . 19 1 . . . . . . . . . . . . Trap 82 | . . . . . . . . 1 22 . 26 . . . . 6 . 23 2 . 2 . . . . Miscellaneous 5 | . . . . . . . . . . . . . . . 5 . . . . . . . . . . Route ------- -11/Scrapyard -10/Materials (discovered 6 exits: *Mat x3 / [*Min x2] / Sub) -10/Mines (discovered 4 exits: *Mat x2 / *Exi / Sub) -10/Exiles -9/Mines -8/Materials (discovered 4 exits: *Fac x3 / Gar) -7/Factory (discovered 4 exits: *Fac x3 / Low) -7/Waste -7/Factory (discovered 4 exits: *Fac x3 / Low) -6/Factory (discovered 7 exits: *Fac x3 / *Low x2 / Ext x2) -6/Waste -6/Factory (discovered 2 exits: *Fac / *Ext) -6/Extension (discovered 3 exits: *Fac x2 / *Cet) -6/Cetus (discovered 3 exits: *Fac x2 / [*Arc]) -6/Archives (discovered 3 exits: *Fac / *Hub x2) -6/Hub_04(d) (discovered 4 exits: *Fac x4) -5/Factory (discovered 6 exits: *Fac x4 / *Upp x2) -5/Waste -5/Factory (discovered 6 exits: *Fac x4 / *Upp x2) -4/Factory -4/Waste -4/Factory (discovered 6 exits: *Res x3 / Upp x2 / *Arm) -4/Armory (discovered 3 exits: *Res x2 / [Lab]) -3/Research (discovered 5 exits: *Res x3 / Qua x2) -2/Research (discovered 4 exits: *Acc x3 / [Tes]) -1/Access To Epsilon Eridani History --------- Turn | Location | Event 16 | -11/Scrapyard | Discovered new exit (range 15) 42 | -11/Scrapyard | Entered Materials 261 | -10/Materials | Discovered new exit (range 11) 309 | -10/Materials | Build established: Mutant 399 | -10/Materials | Discovered new exit (range 16) 518 | -10/Materials | Discovered new exit (range 16) 836 | -10/Materials | Discovered new exit (range 3) 848 | -10/Materials | Central database locked down 1022 | -10/Materials | Learned location of 2 exits from Mines 1071 | -10/Materials | Discovered new exit (range 16) 1083 | -10/Materials | Learned 2 Mines zone layouts 1177 | -10/Materials | Identified exit to Materials 1177 | -10/Materials | Identified exit to Subcaves 1207 | -10/Materials | Learned location of 1 exit from Recycling 1222 | -10/Materials | Entered Mines 1224 | -10/Mines | Identified exit to Exiles 1261 | -10/Mines | Learned Materials security intel 1326 | -10/Mines | Learned Materials terminal intel 1452 | -10/Mines | Deemed a non-threat by the Exiles lab entrance 1458 | -10/Mines | Entered Exiles 1505 | -10/Exiles | Met 8R-AWN 1525 | -10/Exiles | Met EX-HEX 1602 | -10/Exiles | Met EX-BIN 1631 | -10/Exiles | Aligned with FarCom system 1632 | -10/Exiles | Given EX-Vault access code 1671 | -10/Exiles | Opened EX-Vault 1681 | -10/Exiles | Found Deploy-a-Sentry 1687 | -10/Exiles | Found Deploy-a-Sentry 1690 | -10/Exiles | Found Deploy-a-Sentry 1721 | -10/Exiles | Warned to stay clear of 0b10 Research branches 1772 | -10/Exiles | Met EX-DEC 1900 | -10/Exiles | Learned location of Zion (-6) 1947 | -10/Exiles | Discovered new exit (range 10) 1964 | -10/Exiles | Left Exiles lab with Deploy-a-Sentry 1964 | -10/Exiles | Entered Mines 1965 | -9/Mines | Learned location of Storage (-9) 1981 | -9/Mines | Discovered new exit (range 6) 1983 | -9/Mines | Met a Derelict bent on vengeance 1991 | -9/Mines | Entered Materials 1991 | -8/Materials | Evolved 4 slots: Propulsion x1, Utility x3 1993 | -8/Materials | Loaded intel: 12 terminal locations 2164 | -8/Materials | DAS Turret deployed 2414 | -8/Materials | Identified exit to Garrison 2522 | -8/Materials | Build established: Scavenger-Mutant 2860 | -8/Materials | Discovered new exit (range 16) 2898 | -8/Materials | Build established: Mutant 3129 | -8/Materials | DAS Turret deployed 3381 | -8/Materials | Learned Factory interactive machine intel 3452 | -8/Materials | Learned Factory trap positions 3514 | -8/Materials | Learned Factory garrison access intel 3565 | -8/Materials | Identified exit to Factory 3604 | -8/Materials | Learned location of Lower Caves (-7) 3654 | -8/Materials | Learned 4 Factory zone layouts 3712 | -8/Materials | Learned Factory stockpile data 3843 | -8/Materials | Entered Factory 3843 | -7/Factory | Evolved 2 slots: Propulsion x1, Utility x1 3845 | -7/Factory | Loaded intel: 121 trap records 3847 | -7/Factory | Loaded intel: 51 interactive machine locations 3848 | -7/Factory | Loaded intel: 4 garrison access locations 3994 | -7/Factory | Hacking Suite fried by hacking feedback 3998 | -7/Factory | Fabricated Imp. VTOL Module (x1) 4144 | -7/Factory | Build established: Hacker-Sprinter 4381 | -7/Factory | Discovered new exit (range 16) 4566 | -7/Factory | Discovered new exit (range 8) 4605 | -7/Factory | Learned location of 2 exits from Proximity Caves 4613 | -7/Factory | DAS Turret deployed 4674 | -7/Factory | Loaded intel: 6 recycling unit locations 4690 | -7/Factory | Crushed by falling debris 4701 | -7/Factory | Fabricated Imp. Cesium-ion Thruster (x1) 4721 | -7/Factory | Lost 4 parts (1p2u1w) 4733 | -7/Factory | Identified exit to Lower Caves 4780 | -7/Factory | Fabricated Exp. Utility Shielding (x1) 4782 | -7/Factory | Learned 2 Upper Caves zone layouts 4823 | -7/Factory | Learned location of 1 exit from Hub_04(d) 4856 | -7/Factory | Learned Extension non-interactive machine intel 4898 | -7/Factory | Learned location of Proximity Caves (-5) 4915 | -7/Factory | Discovered new exit (range 9) 4918 | -7/Factory | Central database locked down 4949 | -7/Factory | Learned location of 1 exit from Upper Caves 4953 | -7/Factory | Manually triggered Chute Trap 4953 | -7/Factory | Sucked down chute 4953 | -7/Factory | Entered Waste 4961 | -7/Waste | Spotted C-40 Crusher 4968 | -7/Waste | EMP discharged 4968 | -7/Waste | System corruption reached 10% 4968 | -7/Waste | Spotted C-40 Crusher 4969 | -7/Waste | Spotted C-40 Crusher 4971 | -7/Waste | Spotted C-40 Crusher 4973 | -7/Waste | Spotted C-40 Crusher 4983 | -7/Waste | Spotted C-40 Crusher 4986 | -7/Waste | Discovered new exit (range 11) 4991 | -7/Waste | Entered Factory 5058 | -7/Factory | Garrison activated, responded to threat 5158 | -7/Factory | Discovered new exit (range 8) 5174 | -7/Factory | Discovered new exit (range 16) 5273 | -7/Factory | Fabricated Exp. Utility Shielding (x1) 5435 | -7/Factory | Repaired Adv. Hacking Suite 5658 | -7/Factory | Learned location of 2 exits from Proximity Caves 5772 | -7/Factory | Loaded intel: 109 trap records 5782 | -7/Factory | Discovered new exit (range 4) 5811 | -7/Factory | Learned location of Lower Caves (-7) 5842 | -7/Factory | Fabricated Cld. VTOL Module (x1) 5873 | -7/Factory | Fabricated Adv. Hacking Suite (x1) 5875 | -7/Factory | Learned 2 Hub_04(d) zone layouts 5926 | -7/Factory | Entered another Factory area 5926 | -6/Factory | Evolved 2 slots: Propulsion x1, Utility x1 6032 | -6/Factory | Discovered new exit (range 7) 6212 | -6/Factory | Repaired Broken Imp. VTOL Module 6279 | -6/Factory | Fabricated Enh. Nuclear Core? 6303 | -6/Factory | Identified exit to Lower Caves 6328 | -6/Factory | Identified exit to Extension 6338 | -6/Factory | Fabricated Cld. VTOL Module? 6386 | -6/Factory | Learned location of 1 exit from Cetus 6399 | -6/Factory | Fabricated Imp. Trap Extractor? 6409 | -6/Factory | Learned Extension security intel 6434 | -6/Factory | Identified exit to Factory 6456 | -6/Factory | Discovered exit to Factory (range 8) 6673 | -6/Factory | Repaired Cld. VTOL Module? 6891 | -6/Factory | Fabricated Cld. VTOL Module? 6905 | -6/Factory | Fabricated Cld. VTOL Module? 6948 | -6/Factory | Fabricated Cld. VTOL Module (x1) 7116 | -6/Factory | Manually triggered Chute Trap 7116 | -6/Factory | Sucked down chute 7116 | -6/Factory | Entered Waste 7119 | -6/Waste | Spotted C-40 Crusher 7120 | -6/Waste | Spotted C-40 Crusher 7121 | -6/Waste | 1 allies followed down the chute 7121 | -6/Waste | Spotted C-40 Crusher 7122 | -6/Waste | Spotted C-40 Crusher 7129 | -6/Waste | Spotted C-40 Crusher 7130 | -6/Waste | Spotted C-40 Crusher 7131 | -6/Waste | EMP discharged 7131 | -6/Waste | Discovered new exit (range 16) 7135 | -6/Waste | Entered Factory 7278 | -6/Factory | Repaired Broken Adv. Reaction Control System 7333 | -6/Factory | System corruption reached 10% 7425 | -6/Factory | Discovered exit to Factory (range 4) 7729 | -6/Factory | Fabricated Adv. System Restoration Module? 7835 | -6/Factory | Search patrols dispatched 8049 | -6/Factory | Fabricated Mni. Smartbomb Launcher? 8154 | -6/Factory | Repaired Enh. Nuclear Core? 8185 | -6/Factory | Search patrols dispatched 8375 | -6/Factory | Destroyed 10 combat bots 8548 | -6/Factory | Fabricated Tesla Bomb Launcher? 8572 | -6/Factory | Spotted B-75 Beast 8730 | -6/Factory | Fabricated Imp. Cesium-ion Thruster? 8885 | -6/Factory | First assault squad dispatched 8991 | -6/Factory | Repaired Corrupted Imp. Cesium-ion Thruster? 9035 | -6/Factory | Entered Extension 9037 | -6/Extension | Loaded intel: 21 non-interactive machine locations 9043 | -6/Extension | Rescued a captive Derelict 9043 | -6/Extension | Rescued a captive Derelict 9047 | -6/Extension | Rescued a captive Derelict 9184 | -6/Extension | Lost 3 allies 9215 | -6/Extension | Central database locked down 9421 | -6/Extension | Spotted B-75 Beast 9433 | -6/Extension | Spotted B-75 Beast 9468 | -6/Extension | Rescued A7 9487 | -6/Extension | Learned Factory terminal intel 9502 | -6/Extension | Rescued a captive Derelict 9503 | -6/Extension | Rescued a captive Derelict 9510 | -6/Extension | Rescued a captive Derelict 9522 | -6/Extension | Learned 2 Proximity Caves zone layouts 9591 | -6/Extension | Discovered new exit (range 6) 9596 | -6/Extension | Learned location of 2 exits from Archives 9605 | -6/Extension | Entered Cetus 9605 | -6/Cetus | Accompanied by 1 ally (A7) 9610 | -6/Cetus | Acquired a Cetus Manufacturing Module code from A7 9611 | -6/Cetus | Lost 4 allies 9611 | -6/Cetus | Spotted Cetus Guard 9611 | -6/Cetus | Spotted Cetus Guard 9615 | -6/Cetus | Spotted Cetus Guard 9615 | -6/Cetus | Spotted Cetus Guard 9616 | -6/Cetus | Destroyed Cetus Guard 9618 | -6/Cetus | Destroyed Cetus Guard 9619 | -6/Cetus | Destroyed Cetus Guard 9621 | -6/Cetus | Rewired Cetus Guard 9630 | -6/Cetus | Started Cetus Manufacturing Module 9632 | -6/Cetus | Discovered new exit (range 16) 9655 | -6/Cetus | Manufactured an Enhanced Grunt 9657 | -6/Cetus | Spotted Cetus Guard 9658 | -6/Cetus | Spotted Cetus Guard 9660 | -6/Cetus | Spotted Cetus Guard 9660 | -6/Cetus | Spotted Cetus Guard 9667 | -6/Cetus | Destroyed Cetus Guard 9672 | -6/Cetus | Destroyed Cetus Guard 9672 | -6/Cetus | Destroyed Cetus Guard 9673 | -6/Cetus | Destroyed Cetus Guard 9679 | -6/Cetus | Discovered exit to Factory (range 15) 9680 | -6/Cetus | Manufactured an Enhanced Grunt 9681 | -6/Cetus | Met Revision 17 9705 | -6/Cetus | Manufactured an Enhanced Grunt 9730 | -6/Cetus | Manufactured an Enhanced Grunt 9755 | -6/Cetus | Manufactured an Enhanced Grunt 9802 | -6/Cetus | Entered Archives 9802 | -6/Archives | Accompanied by 7 allies (A7) 9803 | -6/Archives | Identified exit to Hub_04(d) 9820 | -6/Archives | Allies destroyed Cetus Guard 9821 | -6/Archives | Core integrity fell below 50% 9992 | -6/Archives | Entered Hub_04(d) 9992 | -6/Hub_04(d) | Accompanied by 5 allies 10111 | -6/Hub_04(d) | Learned 2 Lower Caves zone layouts 10147 | -6/Hub_04(d) | Network Hub disabled 10164 | -6/Hub_04(d) | Network Hub disabled 10183 | -6/Hub_04(d) | Lost 3 parts (3n) 10189 | -6/Hub_04(d) | Spotted Lightning 10206 | -6/Hub_04(d) | Lost 4 allies 10206 | -6/Hub_04(d) | Network Hub disabled 10234 | -6/Hub_04(d) | Entered Factory 10234 | -5/Factory | Evolved 2 slots: Power x1, Utility x1 10235 | -5/Factory | Identified exit to Upper Caves 10236 | -5/Factory | Loaded intel: 26 terminal locations 10258 | -5/Factory | Discovered new exit (range 10) 10425 | -5/Factory | Central database locked down 10488 | -5/Factory | Learned Extension trap positions 10516 | -5/Factory | Learned 2 Upper Caves zone layouts 10536 | -5/Factory | Learned Extension emergency access door positions 10547 | -5/Factory | Learned location of 1 exit from Proximity Caves 10549 | -5/Factory | Identified exit to Factory 10550 | -5/Factory | Learned location of 1 exit from Factory 10551 | -5/Factory | Learned location of 1 exit from Research 10560 | -5/Factory | Learned 4 Research zone layouts 10576 | -5/Factory | Learned 8 Research zone layouts 10801 | -5/Factory | Fabricated Imp. Trap Extractor (x2) 10834 | -5/Factory | Search patrols dispatched 10843 | -5/Factory | Fabricated Exp. Cesium-ion Thruster (x1) 11191 | -5/Factory | Fabricated T-07 Excavator (x2) 11218 | -5/Factory | Cargo convoy interrupted 11282 | -5/Factory | Found PL-3XN's Ring of Power 11316 | -5/Factory | Spotted B-75 Beast 11392 | -5/Factory | Manually triggered Chute Trap 11392 | -5/Factory | Sucked down chute 11392 | -5/Factory | Entered Waste 11403 | -5/Waste | Warlord forces began an assault 11409 | -5/Waste | Spotted C-40 Crusher 11409 | -5/Waste | Spotted C-40 Crusher 11414 | -5/Waste | Spotted C-40 Crusher 11415 | -5/Waste | Spotted C-40 Crusher 11421 | -5/Waste | Destroyed C-40 Crusher 11423 | -5/Waste | Allies destroyed C-40 Crusher 11431 | -5/Waste | Spotted C-40 Crusher 11432 | -5/Waste | Destroyed C-40 Crusher 11436 | -5/Waste | Allies destroyed C-40 Crusher 11441 | -5/Waste | Spotted C-40 Crusher 11452 | -5/Waste | Discovered new exit (range 10) 11469 | -5/Waste | Allies destroyed C-40 Crusher 11476 | -5/Waste | Lost 7 allies 11545 | -5/Waste | Entered Factory 11545 | -5/Factory | Accompanied by 11 allies 11637 | -5/Factory | Repaired Mni. Smartbomb Launcher? 11911 | -5/Factory | Learned 4 Armory zone layouts 11979 | -5/Factory | Learned Extension trap positions 12036 | -5/Factory | Learned location of 3 exits from Research 12090 | -5/Factory | Fabricated Electron Diverter (x1) 12118 | -5/Factory | Loaded intel: 84 trap records 12177 | -5/Factory | Learned Research emergency access door positions 12224 | -5/Factory | Learned Armory trap positions 12254 | -5/Factory | Fabricated Electron Diverter (x1) 12282 | -5/Factory | Learned Extension emergency access door positions 12287 | -5/Factory | Fabricated Exp. Heat Sink (x1) 12666 | -5/Factory | Entered another Factory area 12666 | -4/Factory | Evolved 2 slots: Utility x2 12667 | -4/Factory | Identified exit to Research 12917 | -4/Factory | Build established: Wizard-Sprinter 13002 | -4/Factory | Fabricated Electron Diverter (x1) 13067 | -4/Factory | Fabricated Exp. Terrain Scan Processor (x1) 13208 | -4/Factory | Fabricated Exp. Terrain Scan Processor (x1) 13327 | -4/Factory | Crushed by falling debris 13328 | -4/Factory | System corruption reached 10% 13358 | -4/Factory | Lost 3 parts (2u1w) 13416 | -4/Factory | Search patrols dispatched 13753 | -4/Factory | Build established: Hacker-Sprinter 13789 | -4/Factory | Adv. Hacking Suite fried by hacking feedback 13880 | -4/Factory | Found Quantum Capacitor 13902 | -4/Factory | Learned Research trap positions 13946 | -4/Factory | Learned 2 Proximity Caves zone layouts 13952 | -4/Factory | Manually triggered Chute Trap 13952 | -4/Factory | Sucked down chute 13952 | -4/Factory | Entered Waste 13964 | -4/Waste | Met Warlord forces unprepared to attack 13967 | -4/Waste | EMP discharged 13972 | -4/Waste | Spotted C-40 Crusher 13979 | -4/Waste | Spotted C-40 Crusher 13980 | -4/Waste | Spotted C-40 Crusher 13982 | -4/Waste | Spotted C-40 Crusher 13986 | -4/Waste | Spotted C-40 Crusher 13990 | -4/Waste | Spotted C-40 Crusher 13992 | -4/Waste | Discovered new exit (range 14) 13997 | -4/Waste | Entered Factory 13998 | -4/Factory | Identified exit to Upper Caves 14060 | -4/Factory | Fabricated Adv. System Restoration Module (x2) 14149 | -4/Factory | Fabricated Exp. Terrain Scanner (x1) 14451 | -4/Factory | Found Tesla Bomb Launcher 14500 | -4/Factory | Fabricated Adv. System Restoration Module (x2) 14541 | -4/Factory | Fabricated Exp. Utility Shielding (x1) 14688 | -4/Factory | Discovered exit to Research (range 7) 14803 | -4/Factory | Identified exit to Armory 15086 | -4/Factory | Learned location of 1 exit from Research 15094 | -4/Factory | Fabricated Prc. Energy Filter (x1) 15166 | -4/Factory | Learned Testing emergency access door positions 15194 | -4/Factory | Loaded intel: 6 fabricator locations 15211 | -4/Factory | Learned Testing garrison access intel 15235 | -4/Factory | Learned 4 Proximity Caves zone layouts 15325 | -4/Factory | Entered Armory 15328 | -4/Armory | Loaded intel: 53 trap records 15364 | -4/Armory | Spotted B-86 Titan 15568 | -4/Armory | Discovered new exit (range 27) 15569 | -4/Armory | Entered Research 15569 | -3/Research | Evolved 2 slots: Propulsion x1, Utility x1 15570 | -3/Research | Identified exit to Research 15570 | -3/Research | Identified exit to Quarantine 15572 | -3/Research | Loaded intel: 91 trap records 15711 | -3/Research | Repaired Exp. Utility Shielding? 15769 | -3/Research | Revision forces began assault on 0b10 15771 | -3/Research | Build established: Hacker-Scout 15899 | -3/Research | Found Gamma Bomb Array 15945 | -3/Research | Fabricated Adv. Hacking Suite (x1) 15946 | -3/Research | Found Quantum Capacitor 15974 | -3/Research | Fabricated Adv. Hacking Suite (x1) 16031 | -3/Research | Fabricated Cld. Impulse Thruster (x1) 16066 | -3/Research | Fabricated Cld. Impulse Thruster (x1) 16104 | -3/Research | Met up with Revision 17++ 16106 | -3/Research | Fabricated Cld. Impulse Thruster (x1) 16126 | -3/Research | Entered another Research area 16126 | -2/Research | Evolved 2 slots: Propulsion x1, Utility x1 16131 | -2/Research | Identified exit to Access 16134 | -2/Research | Discovered new exit (range 25) 16147 | -2/Research | Entered Access 16147 | -1/Access | Evolved 2 slots: Propulsion x1, Utility x1 16155 | -1/Access | Identified exit to Surface 16217 | *** | Escaped! Last Messages --------------- 16163_ O-32 Director uses terminal to summon reinforcements. 16163_ ALERT: Hostiles spotted, dispatching reinforcements to Terminal A008. 16163_ O-32 Director locks terminal. 16172_ Acquired Imp. Hacking Suite. 16188_ Triggered Segregator Trap. 16188_ Arcs of energy rise from the floor. 16188_ Centrium Medium Armor Plating blown off. 16188_ Lgt. Particle Reactor blown off. 16188_ Cld. Impulse Thruster blown off. 16188_ Adv. Hacking Suite blown off. 16189_ Acquired Centrium Medium Armor Plating. 16190_ Acquired Lgt. Particle Reactor. 16193_ Acquired Cld. Impulse Thruster. 16215_ Slug penetrates Wall. 16216_ Connecting with Terminal... >>Open(Door) Sealed Barrier opened. 16216_ The Access Shell folds into the floor. Map ----- +----------------------------------------------------+ | # ## ## ### "" ########### # ########## | | # ## ## "T ########### # ########## | | # ## ## ### ########### # ########?# | | ## ## ### ########### + ####### | | ## + #######"########### #### ####### | | ##### * # # ###########"#### ####### | | ##### # # ###### # ####?## | | ##### # # """ ###### # ####### | | ?#### # # """ ###### " # ######? | | ##### # # R" ###### """ + | | #######+### # """ !###### """ ######### | | # "" ###### " ######### | | # ###### ######### | | # ###### # | | ########### + !! ################ | | ########### # !! ################ | | #########?# # ################ ? | | ?#?######## #Y########################### | | ####?###### ############################# | | ########?## ####### ###############?##### | | #?###?##### """T""" """" # | | ########### """ """ """" BB # ? | | #######?### """" BB ?#####+### | | ?#?#####?## """" ? | | ########### "" """" ? ? | | ########### @" """" ? | | ###?####### """" "?" | | ##?###?# """" BB ? #?# """ | | ? #?###### """" BB ? ??##? """ | | ?######## """" ? ### ???"? | | ?? ??###### ####### ##################?####? """ | | ? ?#??##### ###?######?########???#??#####? | | ???##?##?# ###?###?##???#####?#?##?#??#?##?? ? ? | | #?##?###?## ????###?###??#???#####?##??##?? ????? | | ######?##?# ##?##?##????????#???#??###?##?? ? ??? | | ?#?###?#### #??######??##??????????#????#?? ???? | | #??###?#?## ??##??##?#?#?#??#???#???##??????????? | | ?#?#????#?# ????#????????####??#??#?????????????? | | ?##??#????????##???#?##??##??###?###??##?#???????? | | ? ????????? ????#???#??#??#?###?????#?#?????????? | | ? ? ????????##?###??#?####????#??###?????????? | | ?? ? ? ????? ??#?##?###?##???##?????????????????? | | ?? ?#?#?## ????#?####?#?????##??????#???#?#??????? | | ?????##??#??####?##?#?#????#??????##???#?????????? | | ? ?? ? ?? ?#????#?#?#??#?????#?##????#??????????? | | ? ?? ???? ??????#?####???#?#????????#???????????? | | ??+?? ?? ??? ??###????????###???#??????????????? | | ????? ""?????#?#????#?????##?##?#????????????????? | | ?????????? ??? ???#?####???##????????????????????? | | ? ?? ???? ???? ##??#?###?#??##???#???????????????? | +----------------------------------------------------+ Best States ------------- Heat Dissipation 88 Energy Generation 47 Energy Capacity 300 Matter Stores 446 Matter Capacity 450 Sight Range 16 Terrain Scan Range 30 Terrain Scan Density 2010 ECM Strength 1 Power Amplification 30 Additional Mass Support 12 Armor Coverage 300 Propulsion Shielding 33 Utility Shielding 90 Evasion (%) 78 Core Analysis 6 Recoil Reduction 3 Offensive Hacking 70 Defensive Hacking 10 Authchip Count 4 Trap Extractor Capacity 8 Item Schematics ----------------- Imp. VTOL Module | -8/Materials | Scanalyzed Exp. Utility Shielding | -7/Factory | Hacked Cld. VTOL Module | -7/Factory | Hacked Imp. Trap Extractor | -7/Factory | Hacked Adv. Hacking Suite | -7/Factory | Scanalyzed Imp. Cesium-ion Thruster | -7/Factory | Scanalyzed Lrn. Sensor Array | -7/Factory | Scanalyzed Plasma Cutter | -7/Factory | Scanalyzed Lgt. Deuterium Engine | -7/Factory | Hacked Enh. Nuclear Core | -6/Factory | Scanalyzed Adv. System Restoration Module | -6/Factory | Hacked Hvy. Phase Cannon | -6/Factory | Hacked Mni. Smartbomb Launcher | -6/Factory | Hacked Cld. Plasma Cannon | -6/Factory | Scanalyzed Tesla Bomb Launcher | -6/Factory | Hacked Adv. Reaction Control System | -6/Factory | Scanalyzed Nuclear Pulse Array | -6/Extension | Hacked Adv. Datajack | -6/Extension | Hacked Nova Cannon | -5/Factory | Hacked Exp. Cesium-ion Thruster | -5/Factory | Hacked Adv. Force Field | -5/Factory | Hacked Adv. Power Amplifier | -5/Factory | Hacked Nanosword | -5/Factory | Downloaded Adv. Corruption Screen | -5/Factory | Hacked Exp. Terrain Scan Processor | -5/Factory | Hacked Electron Diverter | -5/Factory | Scanalyzed Centrium Medium Armor Plating | -5/Factory | Scanalyzed Adv. Salvage Targeting Computer | -5/Factory | Hacked Adv. Actuator Array | -5/Factory | Hacked Adv. Energy Well | -5/Factory | Scanalyzed Adv. Transmission Jammer | -5/Factory | Scanalyzed Adv. Trap Extractor | -5/Factory | Scanalyzed Imp. Recalibrator | -5/Factory | Hacked Hyp. Mass Driver | -5/Factory | Hacked Exp. Heat Sink | -5/Factory | Hacked Enh. Nova Cannon | -4/Factory | Hacked Exp. Terrain Scanner | -4/Factory | Hacked Quantum Capacitor | -4/Factory | Hacked Prc. Energy Filter | -4/Factory | Hacked Impulse Thruster Array | -3/Research | Hacked Mic. Antimatter Reactor | -3/Research | Hacked Cld. Impulse Thruster | -3/Research | Hacked Exp. Propulsion Shielding | -3/Research | Hacked Robot Schematics ------------------ None Fabricated ------------ Imp. VTOL Module | x1 | -7/Factory Imp. Cesium-ion Thruster | x1 | -7/Factory | Preloaded Exp. Utility Shielding | x1 | -7/Factory | Authchip Exp. Utility Shielding | x1 | -7/Factory | Authchip Cld. VTOL Module | x1 | -7/Factory | Authchip Adv. Hacking Suite | x1 | -7/Factory | Authchip Enh. Nuclear Core | x1 | -6/Factory Cld. VTOL Module | x1 | -6/Factory Imp. Trap Extractor | x2 | -6/Factory Cld. VTOL Module | x1 | -6/Factory Cld. VTOL Module | x1 | -6/Factory Cld. VTOL Module | x1 | -6/Factory Adv. System Restoration Module | x2 | -6/Factory | Authchip Mni. Smartbomb Launcher | x1 | -6/Factory | Authchip Tesla Bomb Launcher | x1 | -6/Factory Imp. Cesium-ion Thruster | x1 | -6/Factory Imp. Trap Extractor | x2 | -5/Factory | Authchip Exp. Cesium-ion Thruster | x1 | -5/Factory | Authchip T-07 Excavator | x2 | -5/Factory | Preloaded Electron Diverter | x1 | -5/Factory | Authchip Electron Diverter | x1 | -5/Factory | Authchip Exp. Heat Sink | x1 | -5/Factory Electron Diverter | x1 | -4/Factory Exp. Terrain Scan Processor | x1 | -4/Factory Exp. Terrain Scan Processor | x1 | -4/Factory Adv. System Restoration Module | x2 | -4/Factory Exp. Terrain Scanner | x1 | -4/Factory Adv. System Restoration Module | x2 | -4/Factory Exp. Utility Shielding | x1 | -4/Factory Prc. Energy Filter | x1 | -4/Factory Adv. Hacking Suite | x1 | -3/Research | Authchip Adv. Hacking Suite | x1 | -3/Research | Authchip Cld. Impulse Thruster | x1 | -3/Research | Authchip Cld. Impulse Thruster | x1 | -3/Research | Authchip Cld. Impulse Thruster | x1 | -3/Research Alien Tech Used ----------------- None Achievements -------------- Guerrilla Style Minesweeper Challenges ------------ None Game ------ Seed AuthchipNetworkTriangulator Manual? 0 Play Time 03:43:04 Cumulative 474.6 hours Start 2024.10.22 @ 21:58:59 End 2024.10.24 @ 08:44:29 Sessions 7 Manual Loads 0 Difficulty Rogue Special Mode None Game No. 285 Rogue 284 Adventurer 1 Explorer 0 Win Type 0 Total 112 Types 95/5/5/4/0/0/0/1/2 Lore% 75 Gallery% 78 Achievement% 76 Wizard Run 0 Options --------- Layout 2 ASCII 0 Keyboard 0 Movement Arrows Keybinds 0 Fullscreen 1 Font 32/SmallcapsGlow Map View 50x44 Zoom Use 0% Tactical HUD 1 Map Filters NONE Filters NONE Steam X RUN: 20201395-2467-484b-93fa-b1fdf0977004